[Event "Titled Tuesday Blitz December 20 Late 2022"]
[White "Milikow, Yoav"]
[Black "Sjugirov, Sanan"]
[WhiteFideId "2822237"]
[BlackFideId "4189302"]
[WhiteElo "2416"]
[BlackElo "2613"]
[Result "0-1"]
[Round "04"]
[TimeControl "180+1"]
[Date "2022.12.20"]
[WhiteClock "0:00:08"]
[BlackClock "0:00:04"]

1. d4 {[%clk 0:03:00]}  Nf6 {[%clk 0:02:59]} 2. c4 {[%clk 0:03:01]}  e6 {[%clk 0:03:00]} 3. Nc3 {[%clk 0:02:58]}  Bb4 {[%clk 0:02:59]} 4. Qc2 {[%clk 0:02:57]}  d5 {[%clk 0:02:57]} 5. a3 {[%clk 0:02:55]}  Bxc3+ {[%clk 0:02:56]} 6. Qxc3 {[%clk 0:02:56]}  O-O {[%clk 0:02:57]} 7. Nf3 {[%clk 0:02:56]}  h6 {[%clk 0:02:49]} 8. g4 {[%clk 0:02:41]}  Ne4 {[%clk 0:02:32]} 9. Qc2 {[%clk 0:02:39]}  c5 {[%clk 0:02:30]} 10. dxc5 {[%clk 0:02:37]}  a5 {[%clk 0:02:18]} 11. g5 {[%clk 0:01:52]}  hxg5 {[%clk 0:02:04]} 12. h4 {[%clk 0:01:52]}  g4 {[%clk 0:02:03]} 13. Ng5 {[%clk 0:01:52]}  Na6 {[%clk 0:01:55]} 14. Nxe4 {[%clk 0:01:46]}  dxe4 {[%clk 0:01:54]} 15. Qxe4 {[%clk 0:01:41]}  Nxc5 {[%clk 0:01:42]} 16. Qxg4 {[%clk 0:01:40]}  Nb3 {[%clk 0:01:33]} 17. Bg5 {[%clk 0:01:28]}  f6 {[%clk 0:01:21]} 18. Rd1 {[%clk 0:01:25]}  Qc7 {[%clk 0:01:16]} 19. Be3 {[%clk 0:01:06]}  e5 {[%clk 0:01:15]} 20. Qe4 {[%clk 0:00:59]}  Be6 {[%clk 0:00:57]} 21. Rg1 {[%clk 0:00:44]}  f5 {[%clk 0:00:51]} 22. Qc2 {[%clk 0:00:43]}  a4 {[%clk 0:00:43]} 23. Qc3 {[%clk 0:00:40]}  f4 {[%clk 0:00:39]} 24. Bc1 {[%clk 0:00:30]}  Rac8 {[%clk 0:00:36]} 25. Bg2 {[%clk 0:00:25]}  Qxc4 {[%clk 0:00:16]} 26. Qxe5 {[%clk 0:00:25]}  Rf7 {[%clk 0:00:05]} 27. Bxf4 {[%clk 0:00:08]}  Qxf4 {[%clk 0:00:04]} 28. Qxe6 {[%clk 0:00:08]}  Qxf2# {[%clk 0:00:04]} 0-1


[Site "https://www.chess.com"]

[Event "Titled Tuesday Blitz December 20 Late 2022"]
[White "Moreno Perez, Tobias Sebastian"]
[Black "Myers, Dominique"]
[WhiteFideId "186716"]
[BlackFideId "2041715"]
[WhiteElo "2259"]
[BlackElo "1953"]
[Result "1-0"]
[Round "04"]
[TimeControl "180+1"]
[Date "2022.12.21"]
[WhiteClock "0:00:13"]
[BlackClock "0:01:19"]

1. Nf3 {[%clk 0:03:00]}  f5 {[%clk 0:02:58]} 2. b3 {[%clk 0:02:59]}  Nf6 {[%clk 0:02:58]} 3. Bb2 {[%clk 0:03:00]}  e6 {[%clk 0:02:55]} 4. g3 {[%clk 0:02:59]}  b6 {[%clk 0:02:56]} 5. Bg2 {[%clk 0:02:59]}  Bb7 {[%clk 0:02:56]} 6. O-O {[%clk 0:03:00]}  Be7 {[%clk 0:02:57]} 7. d3 {[%clk 0:03:01]}  O-O {[%clk 0:02:57]} 8. Nbd2 {[%clk 0:03:01]}  d6 {[%clk 0:02:58]} 9. Re1 {[%clk 0:03:00]}  Nbd7 {[%clk 0:02:58]} 10. e4 {[%clk 0:03:00]}  fxe4 {[%clk 0:02:56]} 11. dxe4 {[%clk 0:03:01]}  e5 {[%clk 0:02:57]} 12. Ng5 {[%clk 0:02:59]}  Nc5 {[%clk 0:02:44]} 13. b4 {[%clk 0:02:15]}  h6 {[%clk 0:02:35]} 14. bxc5 {[%clk 0:02:12]}  hxg5 {[%clk 0:02:35]} 15. cxd6 {[%clk 0:02:13]}  Bxd6 {[%clk 0:02:34]} 16. Nc4 {[%clk 0:02:12]}  Qe7 {[%clk 0:02:33]} 17. Ne3 {[%clk 0:01:55]}  Rac8 {[%clk 0:02:33]} 18. Nf5 {[%clk 0:01:54]}  Qe6 {[%clk 0:02:33]} 19. Qd2 {[%clk 0:01:54]}  g4 {[%clk 0:02:29]} 20. Qg5 {[%clk 0:01:53]}  Ne8 {[%clk 0:02:24]} 21. Qxg4 {[%clk 0:01:51]}  Rf6 {[%clk 0:02:24]} 22. Bh3 {[%clk 0:01:40]}  Qf7 {[%clk 0:02:23]} 23. Qe2 {[%clk 0:01:02]}  Rg6 {[%clk 0:02:22]} 24. Nxd6 {[%clk 0:01:00]}  Nxd6 {[%clk 0:02:22]} 25. Bxc8 {[%clk 0:01:00]}  Bxc8 {[%clk 0:02:23]} 26. Bxe5 {[%clk 0:00:58]}  Bg4 {[%clk 0:02:14]} 27. Qd3 {[%clk 0:00:54]}  Nc4 {[%clk 0:02:06]} 28. f4 {[%clk 0:00:52]}  Nxe5 {[%clk 0:02:03]} 29. fxe5 {[%clk 0:00:53]}  Qe7 {[%clk 0:01:59]} 30. Rad1 {[%clk 0:00:37]}  Kh7 {[%clk 0:01:54]} 31. Rd2 {[%clk 0:00:34]}  Qxe5 {[%clk 0:01:53]} 32. Qd4 {[%clk 0:00:17]}  Qg5 {[%clk 0:01:48]} 33. Rf2 {[%clk 0:00:16]}  Bh3 {[%clk 0:01:39]} 34. Qe3 {[%clk 0:00:16]}  Qe5 {[%clk 0:01:38]} 35. Rf4 {[%clk 0:00:16]}  Bg4 {[%clk 0:01:31]} 36. Ref1 {[%clk 0:00:12]}  Qe6 {[%clk 0:01:31]} 37. e5 {[%clk 0:00:11]}  Rg5 {[%clk 0:01:29]} 38. Qe4+ {[%clk 0:00:11]}  Kh6 {[%clk 0:01:27]} 39. Rf6+ {[%clk 0:00:11]}  gxf6 {[%clk 0:01:27]} 40. Rxf6+ {[%clk 0:00:11]}  Qxf6 {[%clk 0:01:28]} 41. exf6 {[%clk 0:00:12]}  Bh5 {[%clk 0:01:22]} 42. Qf4 {[%clk 0:00:12]}  Kg6 {[%clk 0:01:16]} 43. f7 {[%clk 0:00:12]}  Rf5 {[%clk 0:01:16]} 44. Qxf5+ {[%clk 0:00:12]}  Kxf5 {[%clk 0:01:16]} 45. f8=Q+ {[%clk 0:00:13]}  Ke5 {[%clk 0:01:15]} 46. Qf4+ {[%clk 0:00:13]}  Ke6 {[%clk 0:01:15]} 47. g4 {[%clk 0:00:13]}  Be8 {[%clk 0:01:15]} 48. h4 {[%clk 0:00:12]}  c5 {[%clk 0:01:15]} 49. h5 {[%clk 0:00:12]}  a5 {[%clk 0:01:15]} 50. h6 {[%clk 0:00:11]}  Kd5 {[%clk 0:01:16]} 51. h7 {[%clk 0:00:11]}  Kc6 {[%clk 0:01:17]} 52. h8=Q {[%clk 0:00:12]}  Bd7 {[%clk 0:01:18]} 53. Qhf6+ {[%clk 0:00:12]}  Kb5 {[%clk 0:01:18]} 54. Q4d6 {[%clk 0:00:13]}  Bc6 {[%clk 0:01:19]} 55. Qxc6+ {[%clk 0:00:13]} 1-0


[Site "https://www.chess.com"]

[Event "Titled Tuesday Blitz December 20 Late 2022"]
[White "Muhammad, Shahzeb"]
[Black "Tanenbaum, Zachary"]
[WhiteFideId "7804806"]
[BlackFideId "2060850"]
[WhiteElo "2383"]
[BlackElo "2175"]
[Result "1-0"]
[Round "04"]
[TimeControl "180+1"]
[Date "2022.12.21"]
[WhiteClock "0:00:18"]
[BlackClock "0:00:09"]

1. e4 {[%clk 0:02:52]}  e5 {[%clk 0:02:59]} 2. Nf3 {[%clk 0:02:52]}  Nc6 {[%clk 0:03:00]} 3. d4 {[%clk 0:02:52]}  exd4 {[%clk 0:03:00]} 4. Nxd4 {[%clk 0:02:53]}  Bc5 {[%clk 0:03:00]} 5. Nxc6 {[%clk 0:02:53]}  Qf6 {[%clk 0:03:00]} 6. Qd2 {[%clk 0:02:53]}  dxc6 {[%clk 0:02:59]} 7. Bd3 {[%clk 0:02:54]}  Ne7 {[%clk 0:02:53]} 8. O-O {[%clk 0:02:55]}  Be6 {[%clk 0:02:34]} 9. Qg5 {[%clk 0:02:54]}  Qxg5 {[%clk 0:02:25]} 10. Bxg5 {[%clk 0:02:49]}  f6 {[%clk 0:02:20]} 11. Bc1 {[%clk 0:02:48]}  O-O-O {[%clk 0:02:18]} 12. Kh1 {[%clk 0:02:48]}  f5 {[%clk 0:02:16]} 13. Nc3 {[%clk 0:02:45]}  Bd4 {[%clk 0:02:15]} 14. Bg5 {[%clk 0:02:44]}  Bxc3 {[%clk 0:01:55]} 15. bxc3 {[%clk 0:02:37]}  Rd7 {[%clk 0:01:55]} 16. Bxe7 {[%clk 0:02:34]}  fxe4 {[%clk 0:01:51]} 17. Bxe4 {[%clk 0:02:28]}  Rxe7 {[%clk 0:01:51]} 18. Rfe1 {[%clk 0:02:20]}  g6 {[%clk 0:01:44]} 19. a3 {[%clk 0:02:16]}  Rhe8 {[%clk 0:01:43]} 20. Bd3 {[%clk 0:02:11]}  c5 {[%clk 0:01:28]} 21. c4 {[%clk 0:01:54]}  Bg4 {[%clk 0:01:23]} 22. Rxe7 {[%clk 0:01:51]}  Rxe7 {[%clk 0:01:24]} 23. f3 {[%clk 0:01:51]}  Bf5 {[%clk 0:01:16]} 24. Bxf5+ {[%clk 0:01:33]}  gxf5 {[%clk 0:01:17]} 25. Kg1 {[%clk 0:01:31]}  Re2 {[%clk 0:01:16]} 26. Rc1 {[%clk 0:01:28]}  Kd7 {[%clk 0:01:08]} 27. h4 {[%clk 0:00:54]}  Kd6 {[%clk 0:01:07]} 28. Kh2 {[%clk 0:00:53]}  Ke5 {[%clk 0:01:07]} 29. Kg3 {[%clk 0:00:50]}  f4+ {[%clk 0:01:07]} 30. Kh3 {[%clk 0:00:49]}  Kd4 {[%clk 0:01:01]} 31. g3 {[%clk 0:00:43]}  fxg3 {[%clk 0:01:01]} 32. Kxg3 {[%clk 0:00:43]}  Kxc4 {[%clk 0:01:01]} 33. f4 {[%clk 0:00:40]}  Re3+ {[%clk 0:01:00]} 34. Kg4 {[%clk 0:00:40]}  Rxa3 {[%clk 0:01:01]} 35. f5 {[%clk 0:00:39]}  Ra6 {[%clk 0:01:01]} 36. Rf1 {[%clk 0:00:26]}  Rf6 {[%clk 0:00:57]} 37. Kg5 {[%clk 0:00:26]}  Rf7 {[%clk 0:00:58]} 38. f6 {[%clk 0:00:26]}  Kc3 {[%clk 0:00:57]} 39. Rf2 {[%clk 0:00:26]}  a5 {[%clk 0:00:57]} 40. Kf5 {[%clk 0:00:26]}  a4 {[%clk 0:00:54]} 41. Ke6 {[%clk 0:00:27]}  Rf8 {[%clk 0:00:53]} 42. Ke7 {[%clk 0:00:23]}  Ra8 {[%clk 0:00:48]} 43. f7 {[%clk 0:00:19]}  a3 {[%clk 0:00:48]} 44. Rf3+ {[%clk 0:00:18]}  Kb2 {[%clk 0:00:46]} 45. Rb3+ {[%clk 0:00:18]}  Kxc2 {[%clk 0:00:29]} 46. Rxa3 {[%clk 0:00:17]}  Rc8 {[%clk 0:00:26]} 47. Ra7 {[%clk 0:00:15]}  b5 {[%clk 0:00:24]} 48. f8=Q {[%clk 0:00:15]}  Rxf8 {[%clk 0:00:23]} 49. Kxf8 {[%clk 0:00:16]}  c4 {[%clk 0:00:20]} 50. Rxc7 {[%clk 0:00:17]}  Kc3 {[%clk 0:00:17]} 51. Ke7 {[%clk 0:00:18]}  b4 {[%clk 0:00:18]} 52. Kd6 {[%clk 0:00:18]}  b3 {[%clk 0:00:18]} 53. Kd5 {[%clk 0:00:18]}  b2 {[%clk 0:00:09]} 54. Rxc4+ {[%clk 0:00:19]}  Kd3 {[%clk 0:00:08]} 55. Rb4 {[%clk 0:00:17]}  Kc2 {[%clk 0:00:09]} 56. Ke5 {[%clk 0:00:17]}  b1=Q {[%clk 0:00:07]} 57. Rxb1 {[%clk 0:00:17]}  Kxb1 {[%clk 0:00:08]} 58. Kf6 {[%clk 0:00:17]}  Kc2 {[%clk 0:00:08]} 59. Kg7 {[%clk 0:00:17]}  Kd3 {[%clk 0:00:09]} 60. Kxh7 {[%clk 0:00:18]}  Ke4 {[%clk 0:00:10]} 61. Kg7 {[%clk 0:00:17]}  Kf5 {[%clk 0:00:09]} 62. h5 {[%clk 0:00:18]} 1-0


[Site "https://www.chess.com"]

[Event "Titled Tuesday Blitz December 20 Late 2022"]
[White "Nasir, Zehn"]
[Black "Dylag, Emilia"]
[WhiteFideId "2613239"]
[BlackFideId "21805172"]
[WhiteElo "1993"]
[BlackElo "1878"]
[Result "1-0"]
[Round "04"]
[TimeControl "180+1"]
[Date "2022.12.21"]
[WhiteClock "0:00:11"]
[BlackClock "0:00:10"]

1. d4 {[%clk 0:03:00]}  Nf6 {[%clk 0:02:58]} 2. Bf4 {[%clk 0:03:00]}  g6 {[%clk 0:02:54]} 3. Nc3 {[%clk 0:02:59]}  Bg7 {[%clk 0:02:54]} 4. e4 {[%clk 0:02:59]}  d6 {[%clk 0:02:53]} 5. Bc4 {[%clk 0:02:58]}  Nc6 {[%clk 0:02:51]} 6. Nf3 {[%clk 0:02:57]}  O-O {[%clk 0:02:50]} 7. h4 {[%clk 0:02:57]}  Nh5 {[%clk 0:02:48]} 8. Be3 {[%clk 0:02:55]}  e5 {[%clk 0:02:48]} 9. dxe5 {[%clk 0:02:51]}  Nxe5 {[%clk 0:02:46]} 10. Nxe5 {[%clk 0:02:50]}  dxe5 {[%clk 0:02:45]} 11. Qxd8 {[%clk 0:02:47]}  Rxd8 {[%clk 0:02:46]} 12. Nd5 {[%clk 0:02:45]}  c6 {[%clk 0:02:45]} 13. Ne7+ {[%clk 0:02:40]}  Kf8 {[%clk 0:02:44]} 14. Nxc8 {[%clk 0:02:40]}  Raxc8 {[%clk 0:02:44]} 15. g3 {[%clk 0:02:32]}  b6 {[%clk 0:02:43]} 16. Ke2 {[%clk 0:02:29]}  f5 {[%clk 0:02:39]} 17. exf5 {[%clk 0:02:20]}  gxf5 {[%clk 0:02:40]} 18. Be6 {[%clk 0:02:20]}  Rc7 {[%clk 0:02:39]} 19. Bxf5 {[%clk 0:02:19]}  e4 {[%clk 0:02:30]} 20. c3 {[%clk 0:02:12]}  Re7 {[%clk 0:02:20]} 21. Rad1 {[%clk 0:02:05]}  Rxd1 {[%clk 0:02:16]} 22. Rxd1 {[%clk 0:02:05]}  c5 {[%clk 0:02:15]} 23. Rd8+ {[%clk 0:02:02]}  Kf7 {[%clk 0:02:12]} 24. Bxh7 {[%clk 0:01:59]}  Be5 {[%clk 0:02:07]} 25. Bf5 {[%clk 0:01:54]}  Bxg3 {[%clk 0:01:57]} 26. Bg4 {[%clk 0:01:31]}  Nf4+ {[%clk 0:01:51]} 27. Kf1 {[%clk 0:01:18]}  Bh2 {[%clk 0:01:32]} 28. Rd7 {[%clk 0:01:17]}  Rxd7 {[%clk 0:01:26]} 29. Bxd7 {[%clk 0:01:18]}  Nd3 {[%clk 0:01:25]} 30. b3 {[%clk 0:01:14]}  Be5 {[%clk 0:01:25]} 31. Bd2 {[%clk 0:01:11]}  Kg6 {[%clk 0:01:12]} 32. Be8+ {[%clk 0:01:05]}  Kg7 {[%clk 0:01:09]} 33. h5 {[%clk 0:01:03]}  Nf4 {[%clk 0:01:06]} 34. a4 {[%clk 0:00:41]}  Nd5 {[%clk 0:00:54]} 35. h6+ {[%clk 0:00:36]}  Kh7 {[%clk 0:00:52]} 36. c4 {[%clk 0:00:29]}  Nf4 {[%clk 0:00:48]} 37. Bc6 {[%clk 0:00:28]}  Kxh6 {[%clk 0:00:47]} 38. Bxe4 {[%clk 0:00:28]}  Kg7 {[%clk 0:00:48]} 39. Ke1 {[%clk 0:00:20]}  Kf6 {[%clk 0:00:47]} 40. Kd1 {[%clk 0:00:20]}  Ne6 {[%clk 0:00:47]} 41. Be3 {[%clk 0:00:19]}  Nd4 {[%clk 0:00:45]} 42. Bc2 {[%clk 0:00:19]}  Ke6 {[%clk 0:00:42]} 43. Bg5 {[%clk 0:00:18]}  Kd7 {[%clk 0:00:39]} 44. f4 {[%clk 0:00:18]}  Bg7 {[%clk 0:00:37]} 45. Kd2 {[%clk 0:00:17]}  Ke6 {[%clk 0:00:36]} 46. Kd3 {[%clk 0:00:17]}  Nf3 {[%clk 0:00:33]} 47. Ke3 {[%clk 0:00:13]}  Nxg5 {[%clk 0:00:32]} 48. fxg5 {[%clk 0:00:14]}  Ke5 {[%clk 0:00:30]} 49. Be4 {[%clk 0:00:13]}  Bh8 {[%clk 0:00:29]} 50. g6 {[%clk 0:00:13]}  Bg7 {[%clk 0:00:29]} 51. Kf3 {[%clk 0:00:13]}  Kd4 {[%clk 0:00:29]} 52. Kf4 {[%clk 0:00:12]}  Kc3 {[%clk 0:00:28]} 53. Bc6 {[%clk 0:00:10]}  a6 {[%clk 0:00:25]} 54. Bb7 {[%clk 0:00:09]}  a5 {[%clk 0:00:17]} 55. Bc6 {[%clk 0:00:09]}  Kd4 {[%clk 0:00:17]} 56. Kf5 {[%clk 0:00:09]}  Kc3 {[%clk 0:00:12]} 57. Ke6 {[%clk 0:00:08]}  Kxb3 {[%clk 0:00:12]} 58. Bb5 {[%clk 0:00:08]}  Kc3 {[%clk 0:00:10]} 59. Kf7 {[%clk 0:00:08]}  Bd4 {[%clk 0:00:10]} 60. g7 {[%clk 0:00:08]}  Bxg7 {[%clk 0:00:11]} 61. Kxg7 {[%clk 0:00:09]}  Kd4 {[%clk 0:00:10]} 62. Kf6 {[%clk 0:00:10]}  Kc3 {[%clk 0:00:08]} 63. Ke5 {[%clk 0:00:09]}  Kb2 {[%clk 0:00:09]} 64. Kd6 {[%clk 0:00:10]}  Ka1 {[%clk 0:00:10]} 65. Kc6 {[%clk 0:00:10]}  Ka2 {[%clk 0:00:10]} 66. Kxb6 {[%clk 0:00:11]} 1-0


[Site "https://www.chess.com"]

[Event "Titled Tuesday Blitz December 20 Late 2022"]
[White "Nasuta, Grzegorz"]
[Black "Sivakumar, Shaaketh"]
[WhiteFideId "1141686"]
[BlackFideId "30940176"]
[WhiteElo "2441"]
[BlackElo "2174"]
[Result "1-0"]
[Round "04"]
[TimeControl "180+1"]
[Date "2022.12.21"]
[WhiteClock "0:00:09"]
[BlackClock "0:00:10"]

1. e4 {[%clk 0:03:00]}  c5 {[%clk 0:02:59]} 2. Nf3 {[%clk 0:03:01]}  d6 {[%clk 0:02:59]} 3. Bb5+ {[%clk 0:02:56]}  Bd7 {[%clk 0:02:58]} 4. Bxd7+ {[%clk 0:02:56]}  Qxd7 {[%clk 0:02:55]} 5. c4 {[%clk 0:02:54]}  Nc6 {[%clk 0:02:52]} 6. d4 {[%clk 0:02:54]}  cxd4 {[%clk 0:02:52]} 7. Nxd4 {[%clk 0:02:55]}  Nf6 {[%clk 0:02:52]} 8. Nc3 {[%clk 0:02:55]}  g6 {[%clk 0:02:53]} 9. Be3 {[%clk 0:02:55]}  Ng4 {[%clk 0:02:49]} 10. Bg5 {[%clk 0:02:50]}  Bg7 {[%clk 0:02:44]} 11. Nxc6 {[%clk 0:02:48]}  bxc6 {[%clk 0:02:45]} 12. O-O {[%clk 0:02:46]}  h6 {[%clk 0:02:33]} 13. Bh4 {[%clk 0:02:44]}  O-O {[%clk 0:02:25]} 14. Qd2 {[%clk 0:02:41]}  Ne5 {[%clk 0:02:19]} 15. b3 {[%clk 0:02:41]}  a5 {[%clk 0:01:54]} 16. Rad1 {[%clk 0:02:37]}  a4 {[%clk 0:01:52]} 17. Nxa4 {[%clk 0:02:31]}  Nxc4 {[%clk 0:01:50]} 18. Qe2 {[%clk 0:02:28]}  Qe6 {[%clk 0:01:36]} 19. Rc1 {[%clk 0:02:13]}  Na5 {[%clk 0:01:27]} 20. f4 {[%clk 0:02:10]}  c5 {[%clk 0:01:20]} 21. Qd3 {[%clk 0:01:12]}  Nc6 {[%clk 0:01:17]} 22. Qd5 {[%clk 0:01:12]}  Nd4 {[%clk 0:01:07]} 23. Qxe6 {[%clk 0:01:11]}  fxe6 {[%clk 0:01:07]} 24. Bxe7 {[%clk 0:00:56]}  Rf7 {[%clk 0:00:55]} 25. Bxd6 {[%clk 0:00:56]}  Ne2+ {[%clk 0:00:52]} 26. Kf2 {[%clk 0:00:42]}  Nxc1 {[%clk 0:00:47]} 27. Rxc1 {[%clk 0:00:43]}  g5 {[%clk 0:00:43]} 28. Ke2 {[%clk 0:00:35]}  gxf4 {[%clk 0:00:38]} 29. Bxc5 {[%clk 0:00:30]}  Be5 {[%clk 0:00:37]} 30. Bf2 {[%clk 0:00:17]}  Kh7 {[%clk 0:00:36]} 31. Rc6 {[%clk 0:00:14]}  Re7 {[%clk 0:00:31]} 32. Kf3 {[%clk 0:00:13]}  Rg8 {[%clk 0:00:28]} 33. Nc5 {[%clk 0:00:13]}  Reg7 {[%clk 0:00:28]} 34. Rxe6 {[%clk 0:00:13]}  Bb8 {[%clk 0:00:27]} 35. g3 {[%clk 0:00:09]}  fxg3 {[%clk 0:00:27]} 36. hxg3 {[%clk 0:00:09]}  Bxg3 {[%clk 0:00:27]} 37. Be3 {[%clk 0:00:09]}  Rf7+ {[%clk 0:00:23]} 38. Ke2 {[%clk 0:00:08]}  Rg6 {[%clk 0:00:21]} 39. Re8 {[%clk 0:00:03]}  h5 {[%clk 0:00:21]} 40. Ne6 {[%clk 0:00:03]}  Rd7 {[%clk 0:00:17]} 41. Nf8+ {[%clk 0:00:03]}  Kg7 {[%clk 0:00:16]} 42. Nxd7 {[%clk 0:00:03]}  h4 {[%clk 0:00:17]} 43. Re7+ {[%clk 0:00:03]}  Kg8 {[%clk 0:00:16]} 44. Bd4 {[%clk 0:00:03]}  h3 {[%clk 0:00:16]} 45. Nf6+ {[%clk 0:00:01]}  Kf8 {[%clk 0:00:15]} 46. Rh7 {[%clk 0:00:02]}  h2 {[%clk 0:00:14]} 47. Rh3 {[%clk 0:00:02]}  Bd6 {[%clk 0:00:13]} 48. Nh5 {[%clk 0:00:02]}  Rg2+ {[%clk 0:00:14]} 49. Kf3 {[%clk 0:00:01]}  Rg1 {[%clk 0:00:14]} 50. e5 {[%clk 0:00:01]}  h1=Q+ {[%clk 0:00:13]} 51. Rxh1 {[%clk 0:00:02]}  Rxh1 {[%clk 0:00:14]} 52. exd6 {[%clk 0:00:03]}  Rxh5 {[%clk 0:00:15]} 53. Ke4 {[%clk 0:00:04]}  Ke8 {[%clk 0:00:15]} 54. Be5 {[%clk 0:00:04]}  Kd7 {[%clk 0:00:15]} 55. b4 {[%clk 0:00:04]}  Rh4+ {[%clk 0:00:14]} 56. Bf4 {[%clk 0:00:05]}  Kc6 {[%clk 0:00:14]} 57. a4 {[%clk 0:00:06]}  Rh1 {[%clk 0:00:14]} 58. b5+ {[%clk 0:00:06]}  Kb6 {[%clk 0:00:12]} 59. Be3+ {[%clk 0:00:06]}  Kb7 {[%clk 0:00:12]} 60. Bc5 {[%clk 0:00:05]}  Rh4+ {[%clk 0:00:11]} 61. Kd5 {[%clk 0:00:06]}  Rxa4 {[%clk 0:00:12]} 62. Ke6 {[%clk 0:00:06]}  Ra1 {[%clk 0:00:09]} 63. d7 {[%clk 0:00:06]}  Re1+ {[%clk 0:00:09]} 64. Kd6 {[%clk 0:00:02]}  Rd1+ {[%clk 0:00:09]} 65. Ke7 {[%clk 0:00:03]}  Re1+ {[%clk 0:00:07]} 66. Kf7 {[%clk 0:00:03]}  Rd1 {[%clk 0:00:08]} 67. Ke8 {[%clk 0:00:03]}  Re1+ {[%clk 0:00:08]} 68. Be7 {[%clk 0:00:04]}  Rd1 {[%clk 0:00:04]} 69. d8=Q {[%clk 0:00:04]}  Rxd8+ {[%clk 0:00:04]} 70. Bxd8 {[%clk 0:00:05]}  Ka7 {[%clk 0:00:05]} 71. Kd7 {[%clk 0:00:06]}  Kb7 {[%clk 0:00:06]} 72. Kd6 {[%clk 0:00:06]}  Kc8 {[%clk 0:00:06]} 73. Kc6 {[%clk 0:00:06]}  Kb8 {[%clk 0:00:06]} 74. Kb6 {[%clk 0:00:06]}  Ka8 {[%clk 0:00:06]} 75. Bg5 {[%clk 0:00:07]}  Kb8 {[%clk 0:00:06]} 76. Ka6 {[%clk 0:00:07]}  Ka8 {[%clk 0:00:07]} 77. Be3 {[%clk 0:00:07]}  Kb8 {[%clk 0:00:08]} 78. b6 {[%clk 0:00:08]}  Ka8 {[%clk 0:00:09]} 79. b7+ {[%clk 0:00:08]}  Kb8 {[%clk 0:00:10]} 80. Bf4# {[%clk 0:00:09]} 1-0


[Site "https://www.chess.com"]

[Event "Titled Tuesday Blitz December 20 Late 2022"]
[White "Olsen, Filip Boe"]
[Black "Janaszak, Dawid"]
[WhiteFideId "1440640"]
[BlackFideId "1119206"]
[WhiteElo "2333"]
[BlackElo "2220"]
[Result "1-0"]
[Round "04"]
[TimeControl "180+1"]
[Date "2022.12.21"]
[WhiteClock "0:00:39"]
[BlackClock "0:00:33"]

1. d4 {[%clk 0:02:37]}  Nf6 {[%clk 0:02:59]} 2. c4 {[%clk 0:02:36]}  e6 {[%clk 0:02:59]} 3. Nc3 {[%clk 0:02:36]}  Bb4 {[%clk 0:02:59]} 4. e3 {[%clk 0:02:36]}  O-O {[%clk 0:02:57]} 5. Bd2 {[%clk 0:02:36]}  b6 {[%clk 0:02:55]} 6. Bd3 {[%clk 0:02:36]}  Bb7 {[%clk 0:02:55]} 7. Nf3 {[%clk 0:02:37]}  d5 {[%clk 0:02:54]} 8. cxd5 {[%clk 0:02:35]}  exd5 {[%clk 0:02:53]} 9. Rc1 {[%clk 0:02:35]}  Re8 {[%clk 0:02:50]} 10. Ne5 {[%clk 0:02:33]}  Bd6 {[%clk 0:02:44]} 11. Nb5 {[%clk 0:02:30]}  Ne4 {[%clk 0:02:36]} 12. Nxd6 {[%clk 0:02:25]}  Qxd6 {[%clk 0:02:33]} 13. O-O {[%clk 0:02:17]}  Nd7 {[%clk 0:02:31]} 14. f4 {[%clk 0:01:55]}  Ndf6 {[%clk 0:02:28]} 15. Be1 {[%clk 0:01:53]}  c5 {[%clk 0:02:26]} 16. Bh4 {[%clk 0:01:52]}  cxd4 {[%clk 0:02:20]} 17. exd4 {[%clk 0:01:53]}  Qb4 {[%clk 0:02:16]} 18. Rc7 {[%clk 0:01:30]}  Qxd4+ {[%clk 0:01:47]} 19. Bf2 {[%clk 0:01:30]}  Qxb2 {[%clk 0:01:30]} 20. Rxb7 {[%clk 0:01:27]}  Qxa2 {[%clk 0:01:29]} 21. Bd4 {[%clk 0:01:12]}  Rac8 {[%clk 0:01:06]} 22. Nxf7 {[%clk 0:01:11]}  Nc3 {[%clk 0:01:00]} 23. Qf3 {[%clk 0:01:05]}  Qd2 {[%clk 0:00:46]} 24. Bxf6 {[%clk 0:01:00]}  Re3 {[%clk 0:00:38]} 25. Nh6+ {[%clk 0:00:48]}  Kf8 {[%clk 0:00:36]} 26. Bxg7+ {[%clk 0:00:46]}  Ke8 {[%clk 0:00:36]} 27. Qh5+ {[%clk 0:00:46]}  Kd8 {[%clk 0:00:33]} 28. Bf6+ {[%clk 0:00:39]} 1-0


[Site "https://www.chess.com"]